fUST/lending_fUST_20250730
["ID","MTS","AMOUNT","RATE_DAILY","PERIOD"]
[376004239,1753819846482,-460.0,0.00018744,2]
[376004241,1753819846491,-460.0,0.00018744,2]
[376004243,1753819846500,-460.0,0.00018744,2]
[376004245,1753819846510,-460.0,0.00018744,2]
[376004247,1753819846519,-460.0,0.00018744,2]
[376004249,1753819846530,-460.0,0.00018744,2]
[376004251,1753819846540,-460.0,0.00018744,2]
[376004253,1753819846549,-460.0,0.00018744,2]
[376004255,1753819846558,-460.0,0.00018744,2]
[376004257,1753819846567,-460.0,0.00018744,2]
[376004259,1753819846576,-460.0,0.00018744,2]
[376004261,1753819846585,-460.0,0.00018744,2]
[376004263,1753819846596,-460.0,0.00018744,2]
[376004265,1753819846605,-460.0,0.00018744,2]
[376004267,1753819846614,-460.0,0.00018744,2]
[376004269,1753819846624,-460.0,0.00018744,2]
[376004270,1753819846633,-460.0,0.00018744,2]
[376004272,1753819846642,-460.0,0.00018744,2]
[376004274,1753819846651,-460.0,0.00018744,2]
[376004276,1753819846661,-460.0,0.00018744,2]
[376004278,1753819846671,-460.0,0.00018744,2]
[376004280,1753819846680,-460.0,0.00018744,2]
[376004282,1753819846689,-460.0,0.00018744,2]
[376004284,1753819846698,-460.0,0.00018744,2]
[376004286,1753819846708,-460.0,0.00018744,2]
[376004288,1753819846717,-471.93,0.00018744,2]
[376004290,1753819846728,-2312.01,0.00018744,2]
[376004292,1753819846738,-460.0,0.00018744,2]
[376004294,1753819846747,-460.0,0.00018744,2]
[376004296,1753819846756,-490.48,0.00018744,2]
[376004298,1753819846766,-461.55186778,0.00018744,2]
[376004300,1753819846776,-759.66,0.00018744,2]
[376004302,1753819846786,-460.0,0.00018744,2]
[376004304,1753819846795,-460.0,0.00018744,2]
[376004306,1753819846804,-460.0,0.00018744,2]
[376004308,1753819846813,-460.0,0.00018744,2]
[376004310,1753819846824,-460.0,0.00018744,2]
[376004312,1753819846834,-1671.28,0.00018744,2]
[376004314,1753819846843,-536.24353267,0.00018744,2]
[376004316,1753819846853,-460.0,0.00018744,2]
[376004318,1753819846862,-460.0,0.00018744,2]
[376004320,1753819846871,-475.91132029,0.00018744,2]
[376004322,1753819846881,-460.0,0.00018744,2]
[376004324,1753819846890,-460.0,0.00018744,2]
[376004326,1753819846900,-460.0,0.00018744,2]
[376004328,1753819846909,-460.0,0.00018744,2]
[376004330,1753819846919,-460.0,0.00018744,2]
[376004332,1753819846928,-460.0,0.00018744,2]
[376004334,1753819846938,-1237.92,0.00018744,2]
[376004336,1753819846947,-460.0,0.00018744,2]
[376004338,1753819846957,-460.0,0.00018744,2]
[376004340,1753819846970,-460.0,0.00018744,2]
[376004342,1753819846980,-460.0,0.00018744,2]
[376004344,1753819846989,-460.0,0.00018744,2]
[376004346,1753819846998,-493.05,0.00018744,2]
[376004348,1753819847009,-460.0,0.00018744,2]
[376004350,1753819847018,-598.24,0.00018744,2]
[376004352,1753819847030,-460.0,0.00018744,2]
[376004354,1753819847040,-460.0,0.00018744,2]
[376004356,1753819847050,-460.0,0.00018744,2]
[376004358,1753819847059,-537.79,0.00018744,2]
[376004360,1753819847068,-155.84963317,0.00018744,2]
[376004362,1753819847078,-460.0,0.00018744,2]
[376004364,1753819847087,-756.09,0.00018744,2]
[376004366,1753819847097,-679.02,0.00018744,2]
[376004367,1753819847106,-460.0,0.00018744,2]
[376004369,1753819847116,-460.0,0.00018745,2]
[376004371,1753819847125,-460.0,0.00018745,2]
[376004373,1753819847135,-460.0,0.00018745,2]
[376004375,1753819847144,-460.0,0.00018745,2]
[376004377,1753819847154,-460.0,0.00018745,2]
[376004379,1753819847163,-460.0,0.00018745,2]
[376004381,1753819847175,-460.0,0.00018745,2]
[376004383,1753819847184,-460.0,0.00018745,2]
[376004385,1753819847194,-460.0,0.00018745,2]
[376004387,1753819847203,-460.0,0.00018745,2]
[376004389,1753819847213,-460.0,0.00018745,2]
[376004391,1753819847223,-460.0,0.00018745,2]
[376004394,1753819847234,-460.0,0.00018745,2]
[376004395,1753819847244,-460.0,0.00018745,2]
[376004397,1753819847253,-462.09,0.00018745,2]
[376004399,1753819847263,-460.0,0.00018745,2]
[376004401,1753819847272,-460.0,0.00018745,2]
[376004403,1753819847283,-460.0,0.00018745,2]
[376004405,1753819847292,-460.0,0.00018745,2]
[376004407,1753819847302,-460.0,0.00018745,2]
[376004409,1753819847311,-462.17291887,0.00018745,2]
[376004411,1753819847320,-460.0,0.00018745,2]
[376004413,1753819847330,-6729.82,0.00018745,2]
[376004415,1753819847339,-460.0,0.00018745,2]
[376004417,1753819847348,-460.0,0.00018745,2]
[376004419,1753819847357,-460.0,0.00018745,2]
[376004421,1753819847366,-1382.75,0.00018745,2]
[376004423,1753819847376,-460.0,0.00018745,2]
[376004425,1753819847385,-472.72,0.00018745,2]
[376004427,1753819847394,-460.0,0.00018745,2]
[376004429,1753819847403,-460.0,0.00018745,2]
[376004431,1753819847411,-460.0,0.00018745,2]
[376004433,1753819847420,-460.0,0.00018745,2]
[376004435,1753819847429,-460.0,0.00018745,2]
[376004437,1753819847438,-460.0,0.00018745,2]
[376004439,1753819847446,-460.0,0.00018745,2]
[376004441,1753819847455,-735.6,0.00018745,2]
[376004443,1753819847464,-460.0,0.00018745,2]
[376004445,1753819847473,-1440.67,0.00018745,2]
[376004447,1753819847481,-460.0,0.00018745,2]
[376004449,1753819847491,-460.0,0.00018745,2]
[376004451,1753819847500,-460.0,0.00018745,2]
[376004453,1753819847509,-460.0,0.00018745,2]
[376004455,1753819847518,-460.0,0.00018745,2]
[376004457,1753819847529,-460.0,0.00018745,2]
[376004459,1753819847538,-460.0,0.00018746,2]
[376004461,1753819847547,-460.0,0.00018746,2]
[376004462,1753819847556,-460.0,0.00018746,2]
[376004464,1753819847565,-460.0,0.00018746,2]
[376004466,1753819847574,-460.0,0.00018746,2]
[376004468,1753819847583,-460.0,0.00018746,2]
[376004470,1753819847593,-460.0,0.00018746,2]
[376004472,1753819847602,-460.0,0.00018746,2]
[376004474,1753819847612,-460.0,0.00018746,2]
[376004476,1753819847622,-460.0,0.00018746,2]
[376004478,1753819847631,-460.0,0.00018746,2]
[376004480,1753819847641,-460.0,0.00018746,2]
[376004482,1753819847651,-460.0,0.00018746,2]
[376004484,1753819847660,-463.84938887,0.00018746,2]
[376004486,1753819847669,-460.0,0.00018746,2]
[376004488,1753819847679,-569.29,0.00018746,2]
[376004490,1753819847688,-460.0,0.00018746,2]
[376004492,1753819847697,-460.0,0.00018746,2]
[376004494,1753819847705,-460.0,0.00018746,2]
[376004496,1753819847715,-460.0,0.00018746,2]
[376004497,1753819847724,-460.0,0.00018746,2]
[376004499,1753819847733,-460.0,0.00018746,2]
[376004501,1753819847742,-462.10793454,0.00018746,2]
[376004503,1753819847751,-498.75854964,0.00018746,2]
[376004505,1753819847761,-460.0,0.00018746,2]
[376004507,1753819847770,-564.28,0.00018746,2]
[376004509,1753819847781,-461.7957429,0.00018746,2]
[376004511,1753819847790,-460.0,0.00018746,2]
[376004513,1753819847799,-460.0,0.00018746,2]
[376004514,1753819847809,-460.0,0.00018746,2]
[376004515,1753819847818,-460.0,0.00018746,2]
[376004516,1753819847827,-461.17510533,0.00018746,2]
[376004517,1753819847837,-460.0,0.00018746,2]
[376004518,1753819847846,-460.0,0.00018746,2]
[376004519,1753819847856,-460.0,0.00018746,2]
[376004520,1753819847865,-460.0,0.00018746,2]
[376004521,1753819847875,-500.0,0.00018746,2]
[376004522,1753819847884,-500.0,0.00018746,2]
[376004523,1753819847893,-500.0,0.00018746,2]
[376004524,1753819847903,-460.0,0.00018746,2]
[376004525,1753819847913,-596.3951263,0.00018746,2]
[376004526,1753819847922,-460.0,0.00018746,2]
[376004527,1753819847932,-460.0,0.00018746,2]
[376004528,1753819847941,-460.0,0.00018746,2]
[376004529,1753819847950,-460.0,0.00018746,2]
[376004530,1753819847962,-752.06,0.00018746,2]
[376004531,1753819847974,-460.0,0.00018746,2]
[376004532,1753819847984,-460.0,0.00018746,2]
[376004534,1753819847993,-460.0,0.00018746,2]
[376004536,1753819848003,-460.0,0.00018746,2]
[376004538,1753819848013,-460.0,0.00018746,2]
[376004539,1753819848022,-460.0,0.00018746,2]
[376004541,1753819848033,-460.0,0.00018746,2]
[376004544,1753819848044,-151.0,0.00018747,2]
[376004546,1753819848054,-151.0,0.00018747,2]
[376004547,1753819848064,-201.72492483,0.00018747,2]
[376004549,1753819848073,-151.0,0.00018747,2]
[376004551,1753819848083,-1292.63,0.00018747,2]
[376004553,1753819848092,-460.0,0.00018747,2]
[376004555,1753819848101,-1264.15,0.00018747,2]
[376004557,1753819848111,-1268.07,0.00018747,2]
[376004560,1753819848121,-460.0,0.00018747,2]
[376004561,1753819848131,-460.0,0.00018748,2]
[376004564,1753819848141,-460.0,0.00018748,2]
[376004565,1753819848151,-460.0,0.00018748,2]
[376004567,1753819848161,-460.0,0.00018748,2]
[376004569,1753819848170,-460.0,0.00018748,2]
[376004571,1753819848180,-460.0,0.00018748,2]
[376004573,1753819848190,-464.86912437,0.00018748,2]
[376004575,1753819848200,-460.0,0.00018748,2]
[376004577,1753819848209,-460.0,0.00018748,2]
[376004579,1753819848219,-460.0,0.00018748,2]
[376004581,1753819848228,-460.0,0.00018748,2]
[376004583,1753819848238,-460.0,0.00018748,2]
[376004585,1753819848247,-460.99543552,0.00018748,2]
[376004587,1753819848256,-467.53839417,0.00018748,2]
[376004589,1753819848266,-1449.22,0.00018748,2]
[376004591,1753819848275,-151.4272048,0.00018749,2]
[376004593,1753819848288,-152.53248083,0.00018749,2]
[376004595,1753819848298,-250.13414532,0.00018749,2]
[376004598,1753819848308,-151.0,0.00018749,2]
[376004600,1753819848317,-151.0,0.00018749,2]
[376004602,1753819848327,-151.0,0.00018749,2]
[376004604,1753819848337,-151.0,0.00018749,2]
[376004606,1753819848347,-254.0903166,0.00018749,2]
[376004608,1753819848357,-151.0,0.00018749,2]
[376004609,1753819848367,-151.0,0.00018749,2]
[376004611,1753819848376,-151.0,0.00018749,2]
[376004613,1753819848385,-202.87319312,0.00018749,2]
[376004615,1753819848395,-151.0,0.00018749,2]
[376004617,1753819848405,-151.0,0.00018749,2]
[376004619,1753819848415,-151.0,0.00018749,2]
[376004621,1753819848424,-151.0,0.00018749,2]
[376004623,1753819848435,-500.0,0.00018749,2]
[376004626,1753819848446,-460.0,0.00018751,2]
[376004628,1753819848455,-460.0,0.00018751,2]
[376004630,1753819848464,-1821.29,0.00018751,2]
[376004632,1753819848478,-460.0,0.00018751,2]
[376004633,1753819848488,-460.0,0.00018751,2]
[376004636,1753819848498,-1916.79,0.00018751,2]
[376004638,1753819848507,-1391.03,0.00018751,2]
[376004640,1753819848517,-460.0,0.00018899,2]
[376004642,1753819848527,-460.0,0.00018899,2]
[376004644,1753819848539,-1694.94,0.00018899,2]
[376004646,1753819848549,-1097.12,0.00018899,2]
[376004648,1753819848559,-460.0,0.00018899,2]
[376004650,1753819848568,-460.0,0.00018899,2]
[376004652,1753819848582,-244.86105688,0.000189,2]
[376004654,1753819848592,-316.999319,0.00018981,2]
[376004656,1753819848602,-460.0,0.00019017,2]
[376004658,1753819848611,-460.0,0.00019017,2]
[376004660,1753819848622,-460.0,0.00019017,2]
[376004662,1753819848633,-1703.18,0.00019017,2]
[376004664,1753819848643,-460.0,0.00019017,2]
[376004666,1753819848653,-460.0,0.00019017,2]
[376004668,1753819848668,-460.0,0.00019018,2]
[376004671,1753819848678,-460.0,0.00019018,2]
[376004672,1753819848688,-460.0,0.00019018,2]
[376004674,1753819848697,-384.13,0.00019018,2]
[376004677,1753819848711,-460.0,0.00019018,2]
[376004679,1753819848720,-460.0,0.00019018,2]
[376004680,1753819848730,-460.0,0.00019018,2]
[376004683,1753819848740,-460.0,0.00019018,2]
[376004685,1753819848750,-460.0,0.00019018,2]
[376004687,1753819848760,-460.0,0.00019018,2]
[376004688,1753819848769,-460.0,0.00019018,2]
[376004690,1753819848779,-432.94225072,0.00019018,2]
[376004692,1753819848790,-539.65,0.00019018,2]
[376004695,1753819848800,-460.0,0.00019018,2]
[376004697,1753819848810,-185.67975847,0.00019018,2]
[376004699,1753819848819,-460.0,0.00019018,2]
[376004701,1753819848829,-460.0,0.00019018,2]
[376004703,1753819848839,-460.0,0.00019018,2]
[376004705,1753819848849,-153.46693738,0.00019018,2]
[376004707,1753819848859,-171.08,0.00019018,2]
[376004709,1753819848869,-460.0,0.00019018,2]
[376004710,1753819848878,-471.93,0.00019018,2]
[376004713,1753819848888,-2312.01,0.00019018,2]
[376004715,1753819848898,-460.0,0.00019018,2]
[376004717,1753819848908,-460.0,0.00019018,2]
[376004718,1753819848917,-490.48,0.00019018,2]
[376004721,1753819848927,-759.66,0.00019018,2]
[376004722,1753819848937,-460.0,0.00019018,2]
[376004724,1753819848947,-460.0,0.00019018,2]
[376004727,1753819848957,-460.0,0.00019018,2]
[376004728,1753819848970,-1671.28,0.00019018,2]
[376004731,1753819848980,-460.0,0.00019018,2]
[376004733,1753819848990,-460.0,0.00019018,2]
[376004735,1753819849000,-460.0,0.00019018,2]
[376004737,1753819849011,-1237.92,0.00019018,2]
[376004739,1753819849021,-460.0,0.00019018,2]
[376004741,1753819849032,-460.0,0.00019018,2]
[376004743,1753819849043,-460.0,0.00019018,2]
[376004745,1753819849053,-460.0,0.00019018,2]
[376004747,1753819849063,-493.05,0.00019018,2]
[376004749,1753819849073,-598.24,0.00019018,2]
[376004751,1753819849082,-532.21,0.00019018,2]
[376004753,1753819849092,-460.0,0.00019018,2]
[376004755,1753819849102,-537.79,0.00019018,2]
[376004757,1753819849112,-756.09,0.00019018,2]
[376004759,1753819849121,-679.02,0.00019018,2]
[376004761,1753819849131,-460.0,0.00019019,2]
[376004763,1753819849141,-460.0,0.00019019,2]
[376004765,1753819849150,-460.0,0.00019019,2]
[376004767,1753819849161,-478.90451859,0.00019019,2]
[376004769,1753819849170,-460.0,0.00019019,2]
[376004771,1753819849180,-460.0,0.00019019,2]
[376004773,1753819849190,-6729.82,0.00019019,2]
[376004775,1753819849204,-460.0,0.00019019,2]
[376004777,1753819849214,-460.0,0.00019019,2]
[376004779,1753819849223,-460.0,0.00019019,2]
[376004781,1753819849233,-1382.75,0.00019019,2]
[376004783,1753819849243,-460.0,0.00019019,2]
[376004785,1753819849252,-472.72,0.00019019,2]
[376004787,1753819849261,-460.0,0.00019019,2]
[376004789,1753819849271,-460.0,0.00019019,2]
[376004791,1753819849281,-460.0,0.00019019,2]
[376004793,1753819849291,-460.0,0.00019019,2]
[376004795,1753819849300,-460.0,0.00019019,2]
[376004797,1753819849310,-460.0,0.00019019,2]
[376004799,1753819849319,-460.0,0.00019019,2]
[376004801,1753819849329,-735.6,0.00019019,2]
[376004803,1753819849338,-460.0,0.00019019,2]
[376004805,1753819849348,-1440.67,0.00019019,2]
[376004807,1753819849357,-517.17,0.00019019,2]
[376004809,1753819849367,-460.0,0.00019019,2]
[376004823,1753819849479,-460.0,0.0001902,2]
[376004826,1753819849505,-460.0,0.0001902,2]
[376004828,1753819849515,-460.0,0.0001902,2]
[376004830,1753819849524,-460.0,0.0001902,2]
[376004832,1753819849534,-460.0,0.0001902,2]
[376004834,1753819849543,-460.0,0.0001902,2]
[376004836,1753819849553,-460.0,0.0001902,2]
[376004838,1753819849562,-460.0,0.0001902,2]
[376004840,1753819849572,-569.29,0.0001902,2]
[376004842,1753819849581,-460.0,0.0001902,2]
[376004843,1753819849590,-460.0,0.0001902,2]
[376004846,1753819849600,-460.0,0.0001902,2]
[376004847,1753819849609,-460.0,0.0001902,2]
[376004849,1753819849619,-460.0,0.0001902,2]
[376004852,1753819849628,-460.0,0.0001902,2]
[376004854,1753819849638,-564.28,0.0001902,2]
[376004855,1753819849647,-460.0,0.0001902,2]
[376004858,1753819849657,-460.0,0.0001902,2]
[376004859,1753819849666,-460.0,0.0001902,2]
[376004861,1753819849676,-460.0,0.0001902,2]
[376004863,1753819849685,-460.0,0.0001902,2]
[376004865,1753819849695,-460.0,0.0001902,2]
[376004867,1753819849704,-340.90000032,0.0001902,2]
[376004869,1753819849714,-460.0,0.0001902,2]
[376004871,1753819849724,-752.06,0.0001902,2]
[376004873,1753819849733,-460.0,0.0001902,2]
[376004875,1753819849742,-460.0,0.0001902,2]
[376004877,1753819849752,-460.0,0.0001902,2]
[376004880,1753819849762,-460.0,0.0001902,2]
[376004882,1753819849772,-460.0,0.0001902,2]
[376004883,1753819849782,-460.0,0.0001902,2]
[376004885,1753819849792,-460.0,0.0001902,2]
[376004888,1753819849802,-189.72464462,0.00019021,2]
[376004889,1753819849811,-151.0,0.00019021,2]
[376004891,1753819849820,-214.958414,0.00019021,2]
[376004893,1753819849830,-214.958414,0.00019021,2]
[376004895,1753819849839,-1292.63,0.00019021,2]
[376004898,1753819849849,-151.0,0.00019021,2]
[376004899,1753819849859,-151.0,0.00019021,2]
[376004901,1753819849868,-460.0,0.00019021,2]
[376004903,1753819849878,-1264.15,0.00019021,2]
[376004905,1753819849887,-151.0,0.00019021,2]
[376004908,1753819849897,-151.0,0.00019021,2]
[376004909,1753819849907,-1268.07,0.00019021,2]
[376004912,1753819849916,-450.28403271,0.00019021,2]
[376004914,1753819849926,-460.0,0.00019022,2]
[376004915,1753819849935,-460.0,0.00019022,2]
[376004917,1753819849945,-470.35407382,0.00019022,2]
[376004920,1753819849955,-460.0,0.00019022,2]
[376004922,1753819849970,-460.0,0.00019022,2]
[376004924,1753819849981,-460.0,0.00019022,2]
[376004926,1753819849992,-460.0,0.00019022,2]
[376004928,1753819850002,-535.21,0.00019022,2]
[376004930,1753819850014,-1449.22,0.00019022,2]
[376004932,1753819850023,-198.0,0.00019023,2]
[376004933,1753819850035,-198.0,0.00019023,2]
[376004935,1753819850046,-198.0,0.00019023,2]
[376004937,1753819850056,-500.0,0.00019023,2]
[376004939,1753819850065,-151.0,0.00019023,2]
[376004941,1753819850075,-214.958414,0.00019023,2]
[376004944,1753819850085,-214.958414,0.00019023,2]
[376004945,1753819850094,-151.0,0.00019023,2]
[376004947,1753819850103,-199.000394,0.00019023,2]
[376004950,1753819850114,-151.0,0.00019023,2]
[376004952,1753819850123,-151.0,0.00019023,2]
[376004953,1753819850133,-151.0,0.00019023,2]
[376004955,1753819850142,-151.0,0.00019023,2]
[376004957,1753819850151,-151.0,0.00019025,2]
[376004959,1753819850161,-460.0,0.00019025,2]
[376004961,1753819850172,-460.0,0.00019025,2]
[376004963,1753819850182,-1821.29,0.00019025,2]
[376004966,1753819850191,-460.0,0.00019025,2]
[376004968,1753819850200,-1916.79,0.00019025,2]
[376004970,1753819850210,-151.0,0.00019025,2]
[376004972,1753819850219,-151.0,0.00019025,2]
[376004974,1753819850229,-1391.03,0.00019025,2]
[376004976,1753819850238,-151.0,0.00019031,2]
[376004978,1753819850248,-151.0,0.00019031,2]
[376004979,1753819850257,-151.0,0.00019031,2]
[376004981,1753819850266,-1400.0,0.00019078,2]
[376004984,1753819850276,-298.11911106,0.000191,2]
[376004986,1753819850288,-200.0,0.00019118,15]
[376004988,1753819850297,-200.0,0.00019118,15]
[376004990,1753819850306,-200.0,0.00019118,15]
[376004992,1753819850316,-200.0,0.00019118,15]
[376004994,1753819850325,-1694.94,0.00019173,2]
[376004996,1753819850335,-1097.12,0.00019173,2]
[376004998,1753819850344,-169.487914,0.00019173,2]
[376005000,1753819850353,-460.0,0.00019173,2]
[376005002,1753819850362,-12292.25105958,0.00019195,2]
[376005004,1753819850371,-430.1392862,0.000192,2]
[376005005,1753819850381,-178.4386705,0.000192,2]
[376005007,1753819850391,-430.1392862,0.000192,2]
[376005009,1753819850400,-400.1109256,0.000192,2]
[376005012,1753819850409,-160.1053548,0.000192,2]
[376005014,1753819850419,-160.1053548,0.000192,2]
[376005015,1753819850428,-153.0,0.000192,2]
[376005018,1753819850437,-578.1881624,0.000192,2]
[376005019,1753819850447,-360.2232168,0.000192,2]
[376005021,1753819850456,-160.1053548,0.000192,2]
[376005024,1753819850466,-153.0,0.000192,2]
[376005026,1753819850475,-160.1053548,0.000192,2]
[376005027,1753819850485,-578.1881624,0.000192,2]
[376005029,1753819850494,-160.1053548,0.000192,2]
[376005032,1753819850504,-578.1881624,0.000192,2]
[376005034,1753819850513,-153.0,0.000192,2]
[376005036,1753819850522,-160.1053548,0.000192,2]
[376005037,1753819850533,-578.1881624,0.000192,2]
[376005039,1753819850542,-160.1053548,0.000192,2]
[376005041,1753819850551,-856.1910346,0.000192,2]
[376005044,1753819850561,-578.1881624,0.000192,2]
[376005045,1753819850570,-160.1053548,0.000192,2]
[376005048,1753819850579,-153.0,0.000192,2]
[376005050,1753819850588,-578.1881624,0.000192,2]
[376005052,1753819850597,-578.1881624,0.000192,2]
[376005054,1753819850606,-428.5602146,0.000192,2]
[376005056,1753819850615,-178.4386705,0.000192,2]
[376005058,1753819850624,-160.1053548,0.000192,2]
[376005060,1753819850633,-178.4386705,0.000192,2]
[376005062,1753819850642,-178.4386705,0.000192,2]
[376005064,1753819850651,-306.7461828,0.000192,2]
[376005066,1753819850661,-178.4386705,0.000192,2]
[376005068,1753819850670,-178.4386705,0.000192,2]
[376005070,1753819850680,-430.1392862,0.000192,2]
[376005072,1753819850689,-214.958414,0.00019205,2]
[376005074,1753819850698,-214.958414,0.00019205,2]
[376005075,1753819850708,-189.040139,0.00019205,2]
[376005077,1753819850717,-151.0,0.00019205,2]
[376005079,1753819850727,-151.0,0.00019205,2]
[376005081,1753819850736,-460.0,0.00019291,2]
[376005083,1753819850745,-503.21,0.00019291,2]
[376005086,1753819850755,-460.0,0.00019291,2]
[376005088,1753819850764,-1703.18,0.00019291,2]
[376005089,1753819850773,-116.61264319,0.00019291,2]
[376005092,1753819850791,-343.38735681,0.00019291,2]
[376005094,1753819850800,-460.0,0.00019292,2]
[376005096,1753819850809,-394.22732266,0.00019292,2]
[376005305,1753819853001,5000.0,0.00018728,2]
[376009593,1753819990397,1200.0,0.00017982,2]
[376009594,1753820157516,10000.0,0.00017747,2]
[376009595,1753820213083,150.0,0.00022229,30]
[376009598,1753820294939,150.0,0.0002222,30]
[376009599,1753820376064,150.0,0.0002222,30]
[376009600,1753820432401,5000.0,0.000188,6]
[376009601,1753820453872,150.0,0.00022417,30]
[376009602,1753820478757,594.0,0.00025999,120]
[376009603,1753820540617,150.0,0.0002226,30]
[376009604,1753820611476,-300.0,0.00018741,2]
[376009605,1753820611499,-460.0,0.00018741,2]
[376009606,1753820611522,-460.0,0.00018742,2]
[376009607,1753820611545,-464.33088244,0.00018742,2]
[376009608,1753820611569,-460.0,0.00018742,2]
[376009609,1753820611592,-460.0,0.00018742,2]
[376009610,1753820611617,-460.0,0.00018742,2]
[376009611,1753820611643,-460.0,0.00018742,2]
[376009612,1753820611666,-460.0,0.00018742,2]
[376009613,1753820611689,-460.0,0.00018742,2]
[376009614,1753820611711,-460.0,0.00018742,2]
[376009615,1753820611734,-460.0,0.00018742,2]
[376009616,1753820611757,-460.0,0.00018742,2]
[376009617,1753820611783,-460.0,0.00018742,2]
[376009618,1753820611806,-460.0,0.00018742,2]
[376009619,1753820611829,-487.69625516,0.00018742,2]
[376009620,1753820611853,-563.64411547,0.00018742,2]
[376009621,1753820611876,-460.0,0.00018742,2]
[376009622,1753820611901,-460.0,0.00018742,2]
[376009623,1753820611924,-460.0,0.00018742,2]
[376009624,1753820611948,-460.0,0.00018742,2]
[376009625,1753820611971,-220.06161167,0.00018742,2]
[376009626,1753820611994,-460.0,0.00018742,2]
[376009627,1753820612018,-460.0,0.00018742,2]
[376009628,1753820612041,-460.0,0.00018742,2]
[376009629,1753820612065,-460.0,0.00018742,2]
[376009630,1753820612088,-460.0,0.00018742,2]
[376009631,1753820612111,-460.0,0.00018742,2]
[376009632,1753820612135,-460.0,0.00018742,2]
[376009633,1753820612158,-460.0,0.00018742,2]
[376009634,1753820612182,-460.0,0.00018742,2]
[376009635,1753820612209,-460.0,0.00018742,2]
[376009636,1753820612233,-460.0,0.00018742,2]
[376009637,1753820612257,-460.0,0.00018742,2]
[376009638,1753820612281,-460.0,0.00018742,2]
[376009639,1753820612307,-460.0,0.00018742,2]
[376009640,1753820612330,-460.0,0.00018742,2]
[376009641,1753820612354,-1647.28,0.00018742,2]
[376009642,1753820612377,-460.0,0.00018742,2]
[376009643,1753820612401,-460.0,0.00018742,2]
[376009644,1753820612424,-460.0,0.00018742,2]
[376009645,1753820612447,-460.0,0.00018742,2]
[376009646,1753820612606,-460.0,0.00018742,2]
[376009647,1753820612631,-460.0,0.00018742,2]
[376009648,1753820612656,-460.0,0.00018742,2]
[376009649,1753820612679,-460.0,0.00018742,2]
[376009650,1753820612702,-460.0,0.00018742,2]
[376009651,1753820612725,-460.0,0.00018742,2]
[376009652,1753820612750,-460.0,0.00018742,2]
[376009653,1753820612774,-460.0,0.00018742,2]
[376009654,1753820612797,-303.84339252,0.00018742,2]
[376009655,1753820612820,-460.0,0.00018742,2]
[376009656,1753820612844,-460.0,0.00018742,2]
[376009657,1753820612867,-606.81798076,0.00018742,2]
[376009658,1753820612892,-500.0,0.00018742,2]
[376009659,1753820612916,-366.34158978,0.00018742,2]